Cogmind - Beta 14 @@@ ROGUE MODE // 2024.08.14 @ 17:39:51 Player: Darcyisverycute Result: Destroyed by DAS Turret with DAS Cannon Performance ------------- Evolutions (1) 500 Regions Visited (4) 800 Robots Destroyed (35) 175 Value Destroyed (877) 877 Prototype IDs (4) 80 Alien Tech Used (0) 0 Bonus (358) 358 TOTAL SCORE: 2790 Bonus ------- High Alert Combat Kills 58 Aligned with FarCom 300 Cogmind --------- Core Integrity 0/400 Matter 293/300 Energy 99/100 System Corruption 4% Temperature Cool (0) Movement Rolling (155) Ox5 Location -9/Exiles Parts ------- > --- POWER (1) -------- (None) > --- PROPULSION (3) --- Wheel > --- UTILITY (2) ------ (None) > --- WEAPON (3) ------- AWS/Autocannon > --- INVENTORY (5) ---- Improved Light Cannon Peak State ------------ > --- POWER ------------ Light Nuclear Core > --- PROPULSION ------- Improved Treads Aluminum Leg Wheel > --- UTILITY ---------- Medium Storage Unit Hardened Medium Armor Plating > --- WEAPON ----------- AWS/Autocannon > --- INVENTORY -------- Nuclear Core Nuclear Core Fission Core Light Armor Plating Hardened Light Armor Plating Hardened Medium Armor Plating AWS/Gauss Improved Light Cannon Deploy-a-Sentry [Rating: 45] Favorites ----------- Power Light Nuclear Core Engine Light Ion Engine Power Core Light Nuclear Core Propulsion Aluminum Leg Treads Improved Treads Leg Aluminum Leg Wheel Wheel Utility Hardened Medium Armor Plating Device Tractor Beam Storage Medium Storage Unit Processor Targeting Computer Protection Hardened Medium Armor Plating Weapon Improved Light Cannon Energy Gun Medium Laser Energy Cannon Beam Cannon Ballistic Gun Light Assault Rifle Ballistic Cannon Improved Light Cannon Launcher Grenade Launcher Build | -11 -10 -9 -9 -9 ------- Run | Yrd Mat Mat Min Exi Slots Evolved 2 | . . 2 . . Power . | . . . . . Propulsion 1 | . . 1 . . Utility . | . . . . . Weapon 1 | . . 1 . . Parts Attached 49 | 7 4 18 14 6 Power 5 | 1 . 2 2 . Engine 4 | 1 . 2 1 . Core 1 | . . . 1 . Reactor . | . . . . . Propulsion 13 | 2 . 6 4 1 Treads 1 | . . . 1 . Leg 9 | 2 . 5 2 . Wheel 3 | . . 1 1 1 Hover . | . . . . . Flight . | . . . . . Utility 8 | 2 1 2 2 1 Device 1 | 1 . . . . Storage 2 | 1 1 . . . Processor 1 | . . 1 . . Hackware . | . . . . . Protection 4 | . . 1 2 1 Artifact . | . . . . . Weapon 23 | 2 3 8 6 4 Energy Gun 5 | 2 . 3 . . Energy Cannon 2 | . . 1 1 . Ballistic Gun 3 | . 1 1 . 1 Ballistic Cannon 6 | . . 2 1 3 Launcher 7 | . 2 1 4 . Special Weapon . | . . . . . Impact Weapon . | . . . . . Slashing Weapon . | . . . . . Piercing Weapon . | . . . . . Special Melee Weapon . | . . . . . Unidentified Prototypes 2 | . . . . 2 Parts Lost 28 | . . 8 15 5 Power 5 | . . 2 2 1 Propulsion 9 | . . 2 5 2 Utility 5 | . . 1 2 2 Weapon 9 | . . 3 6 . Highest Loss Streak 11 | . . 4 11 5 To Critical Strikes 1 | . . . 1 . Average Slot Usage (%) 82 | . 100 97 73 71 Engine 5 | . 14 11 3 . Core 5 | . . . 6 10 Treads 5 | . . . 5 11 Leg 19 | . 28 28 18 10 Wheel 3 | . . 2 1 6 Device 1 | . 14 2 . . Storage 9 | . 14 11 11 6 Protection 10 | . . 7 11 15 Energy Gun 3 | . 17 8 . . Ballistic Gun 2 | . 7 5 . . Ballistic Cannon 11 | . . 14 10 11 Launcher 2 | . 3 1 5 . Peak Build Rating 45 | 7 8 17 17 45 Average Rating 18 | 4 7 13 12 29 On Entrance 8 | . 7 8 17 12 Naked Turns . | . . . . . Heaviest Build 83 | 13 19 36 36 83 Greatest Support 36 | 20 20 36 36 23 Greatest Overweight (x) 8 | 2 . 1 2 8 Average Overweight (x) 2 | . . . . 4 Largest Inventory Capacity 10 | 8 10 10 10 10 Average Capacity 8 | 5 8 10 10 7 Most Carried 10 | 5 9 10 10 10 Average Carried 6 | 2 7 9 6 5 Final Capacity 10 | 8 10 10 10 5 Final Carried 10 | 3 9 10 4 1 Class Distribution -------------------- 42% | Mutant 25% | Tank 16% | Scavenger-Tank 8% | Gunner 6% | Scavenger-Mutant Dominant Class ---------------- Mutant | -10/Materials Scavenger-Tank | -9/Materials Mutant | -9/Mines Tank | -9/Exiles Resources | -11 -10 -9 -9 -9 ----------- Run | Yrd Mat Mat Min Exi Matter Collected 1136 | 270 69 386 356 55 Remotely 214 | 56 69 89 . . Salvage Created 1045 | 89 65 859 32 . Parts 70 | 3 10 57 . . Haulers Intercepted 2 | . 1 1 . . Recyclers Shooed . | . . . . . Parts Field Recycled . | . . . . . Retrieved Matter . | . . . . . Parts Self-Destructed . | . . . . . Prevented . | . . . . . Kills | -11 -10 -9 -9 -9 ------- Run | Yrd Mat Mat Min Exi Combat Hostiles Destroyed 47 | . 6 24 17 . Guns 10 | . . 10 . . Cannons 15 | . . 13 2 . AOE 22 | . 6 1 15 . Classes Destroyed 8 | 1 2 3 2 . Worker 1 | . . . 1 . Hauler 2 | . 1 1 . . Recycler 1 | 1 . . . . Swarmer 13 | . 6 6 1 . Grunt 8 | . . 8 . . Duelist 2 | . . 2 . . Sentry 8 | . . 8 . . Assembled 16 | . . . 16 . Best Kill Streak 16 | 1 3 4 16 . Combat Bots Only 16 | . 3 4 16 . Max Kills in Single Turn 8 | 1 2 2 8 . Gunslinging . | . . . . . Exploded 8 | . 2 1 8 . Melee . | . . . . . Uniques/NPCs Destroyed . | . . . . . Combat | -11 -10 -9 -9 -9 -------- Run | Yrd Mat Mat Min Exi Hostile Shots Fired 284 | . 18 122 78 66 Missed 68 | . 6 32 16 14 Damage Taken 3646 | . 102 1203 1367 974 Core 476 | . 10 173 178 115 Absorbed by Shields . | . . . . . Core Remaining (%) 98 | 100 96 . . . Volleys Fired 93 | 1 11 63 17 1 Largest 3 | 2 2 3 3 1 Hottest 145 | 90 80 145 129 39 Shots Fired 215 | 2 21 161 30 1 Gun 118 | 2 17 99 . . Cannon 82 | . . 60 21 1 Launcher 15 | . 4 2 9 . Special . | . . . . . Kinetic 121 | . 6 97 17 1 Thermal 54 | 1 11 38 4 . Explosive 15 | . 4 2 9 . Electromagnetic 25 | 1 . 24 . . Robot Hit Streak 12 | 1 8 12 8 . Robot Miss Streak 6 | . 4 6 2 . Penetration Max . | . . . . . Secondary Targets 1 | . . 1 . . Max Gunslinging Chain 1 | . . 1 . . Shots Hit Robots 131 | 1 11 99 20 . Core Hits 85 | 1 8 41 35 . Critical Kills . | . . . . . Critical Parts Destroyed 1 | . . 1 . . Critical Strikes 9 | . . 8 1 . Burn 2 | . . 2 . . Destroy 1 | . . 1 . . Blast 4 | . . 3 1 . Corrupt 2 | . . 2 . . Melee Attacks . | . . . . . Impact . | . . . . . Slashing . | . . . . . Piercing . | . . . . . Sneak Attacks . | . . . . . Combat Hostiles . | . . . . . Follow-up Attacks . | . . . . . Damage Inflicted 3212 | 15 417 1536 1244 . Guns 848 | 15 94 739 . . Cannons 1102 | . . 755 347 . Explosions 1262 | . 323 42 897 . Melee . | . . . . . Ramming . | . . . . . Kinetic 1207 | . 32 899 276 . Thermal 485 | . 62 352 71 . Explosive 1262 | . 323 42 897 . Electromagnetic 258 | 15 . 243 . . Impact . | . . . . . Slashing . | . . . . . Piercing . | . . . . . Highest Corruption 4 | . . 4 4 4 Average Corruption 3 | . . 3 4 4 Corruption Purged . | . . . . . Corruption Blocked . | . . . . . Effects 41 | . . 4 17 20 Message Errors 14 | . . . 5 9 Matter Fused 9 | . . 3 3 3 Heat Flow Errors 7 | . . 1 3 3 Energy Discharges 5 | . . . 2 3 Data Loss (minor) 5 | . . . 4 1 Data Loss (major) 1 | . . . . 1 Overload Shots . | . . . . . Overflow Damage 28 | . . 4 24 . Projectiles 8 | . . 4 4 . Explosions 20 | . . . 20 . Melee . | . . . . . Knockbacks 8 | . . 5 3 . Impact . | . . . . . Kinetic 8 | . . 5 3 . Secondary . | . . . . . Self-Inflicted Damage 61 | . . . 61 . Shots 5 | . . . 5 . Rammed . | . . . . . Targets Rammed . | . . . . . Kicked . | . . . . . Crushed . | . . . . . Highest Temperature 395 | 30 46 395 341 247 Average Temperature 106 | 18 19 120 101 98 Received Heat Transfer 357 | . . 357 . . Effects 1 | . . 1 . . Energy Bleed 1 | . . 1 . . Siege Activations . | . . . . . Robots Corrupted . | . . . . . Combat Hostiles . | . . . . . Parts Fried . | . . . . . Impact Corruptions . | . . . . . Robots Melted . | . . . . . Combat Hostiles . | . . . . . Parts Melted 2 | . . 2 . . Heat Transferred 1480 | . 185 1147 148 . Parts Sabotaged . | . . . . . Parts Stolen . | . . . . . Parts Stripped . | . . . . . Power Chain Reactions . | . . . . . Alert | -11 -10 -9 -9 -9 ------- Run | Yrd Mat Mat Min Exi Peak Influence 603 | 5 218 603 186 . Initial 176 | . 3 91 176 . Average 224 | 1 99 393 85 . Maximum Alert Level 2 | . 1 2 . . Low Security (%) 58 | 100 94 10 100 . Level 1 18 | . 5 38 . . Level 2 23 | . . 51 . . Level 3 . | . . . . . Level 4 . | . . . . . Level 5 . | . . . . . High Security . | . . . . . Max Security . | . . . . . Squads Dispatched 2 | . . 2 . . Investigation . | . . . . . Extermination . | . . . . . Reinforcement 2 | . . 2 . . Assault . | . . . . . Garrison . | . . . . . Intercept . | . . . . . Searches Triggered . | . . . . . Construction Impeded . | . . . . . Haulers Reinforced . | . . . . . Active Scanning Responses . | . . . . . Cargo Convoy Interrupts . | . . . . . Stealth | -11 -10 -9 -9 -9 --------- Run | Yrd Mat Mat Min Exi Distress Signals 4 | . . 4 . . Communications Jammed . | . . . . . Distress Signals . | . . . . . Times Spotted 87 | . 8 44 30 5 Peak Tracking Total 20 | . 4 7 20 10 Tactical Retreats 8 | . . 4 1 3 Traps | -11 -10 -9 -9 -9 ------- Run | Yrd Mat Mat Min Exi Traps Triggered 3 | . . 3 . . Indirectly . | . . . . . Trap Hack Attempts . | . . . . . Triggered . | . . . . . Disarmed . | . . . . . Reprogrammed . | . . . . . Reused . | . . . . . Traps Extracted . | . . . . . Installed . | . . . . . Triggered . | . . . . . Machines | -11 -10 -9 -9 -9 ---------- Run | Yrd Mat Mat Min Exi Machines Disabled 2 | . . 1 . 1 Max in Single Turn 1 | . . 1 . 1 Machines Repaired . | . . . . . Machines Dismantled . | . . . . . Machines Sabotaged . | . . . . . Overloaded Fab Kills . | . . . . . Hacking | -11 -10 -9 -9 -9 --------- Run | Yrd Mat Mat Min Exi Machines Accessed 7 | . 1 5 1 . Terminals 6 | . 1 4 1 . Fabricators . | . . . . . Repair Stations . | . . . . . Recycling Units 1 | . . 1 . . Scanalyzers . | . . . . . Garrison Access . | . . . . . Total Hacks 21 | . 2 18 1 . Successful 11 | . . 10 1 . Failed 10 | . 2 8 . . Catastrophic 2 | . . 2 . . Database Lockouts . | . . . . . Manual 4 | . . 3 . 1 Terminals 18 | . 2 15 1 . Fabricators . | . . . . . Repair Stations . | . . . . . Recycling Units 3 | . . 3 . . Scanalyzers . | . . . . . Garrison Access . | . . . . . Terminal Hacks 8 | . . 7 1 . Record 2 | . . 1 1 . Prototype ID Bank 1 | . . 1 . . Unreport Threat 1 | . . 1 . . Transport Status 1 | . . 1 . . Investigation Status 1 | . . 1 . . Hauler Manifests 1 | . . 1 . . Zone Layout 1 | . . 1 . . Fabricator Hacks . | . . . . . Repair Station Hacks . | . . . . . Recycling Unit Hacks 3 | . . 3 . . Retrieve Matter 2 | . . 2 . . Retrieve Components 1 | . . 1 . . Scanalyzer . | . . . . . Garrison Access Hacks . | . . . . . Unauthorized Hacks . | . . . . . Terminals . | . . . . . Fabricators . | . . . . . Repair Stations . | . . . . . Recycling Units . | . . . . . Scanalyzers . | . . . . . Garrison Access . | . . . . . Data Cores Recovered . | . . . . . Used . | . . . . . Hacking Detections 6 | . 1 5 . . Full Trace Events . | . . . . . Feedback Events . | . . . . . Feedback Blocked . | . . . . . Robot Schematics Acquired . | . . . . . Robots Built . | . . . . . Authchips . | . . . . . Time . | . . . . . Total Robot Build Rating . | . . . . . Part Schematics Acquired . | . . . . . Parts Built . | . . . . . Authchips . | . . . . . Time . | . . . . . Total Part Build Rating . | . . . . . Parts Repaired . | . . . . . Time . | . . . . . Parts Recycled . | . . . . . Recycled Matter . | . . . . . Retrieved Matter . | . . . . . Retrieved Components 7 | . . 7 . . Parts Scanalyzed . | . . . . . Part Schematics Acquired . | . . . . . Parts Damaged . | . . . . . Bothacking | -11 -10 -9 -9 -9 ------------ Run | Yrd Mat Mat Min Exi Used RIF Installer . | . . . . . Robots Hacked . | . . . . . Non-combat . | . . . . . Combat . | . . . . . Robot Hacks Applied . | . . . . . Relay Couplers Released . | . . . . . Fabnet Peak Effective % . | . . . . . Robots Rewired . | . . . . . Allies Hacked . | . . . . . Hacks Repelled . | . . . . . Allies | -11 -10 -9 -9 -9 -------- Run | Yrd Mat Mat Min Exi Total Allies 1 | . . . 1 . Largest Group 1 | . . . 1 . Highest-Rated Group 31 | . . . 31 . Highest-Rated Ally 31 | . . . 31 . Total Orders . | . . . . . Ally Attacks 9 | . . . 2 7 Total Damage 381 | . . . 20 361 Kills 3 | . . . . 3 Allies Corrupted . | . . . . . Allies Melted . | . . . . . Turrets Deployed 1 | . . . . 1 Intel | -11 -10 -9 -9 -9 ------- Run | Yrd Mat Mat Min Exi Robot Analysis Total . | . . . . . Derelict Logs Recovered . | . . . . . Drone Launches . | . . . . . Drone Recoveries . | . . . . . Exploration | -11 -10 -9 -9 -9 ------------- Run | Yrd Mat Mat Min Exi Turns Passed 2995 | 68 230 854 723 1120 Spaces Moved 1550 | 45 154 432 396 523 Core 10 | 10 . . . . Treads 291 | . . . 99 192 Legs 743 | 35 154 349 205 . Wheels 506 | . . 83 92 331 Hover . | . . . . . Flight . | . . . . . Fastest Speed 50 | 50 120 95 110 110 Average Speed 163 | 107 120 134 158 206 Slowest Speed 260 | 150 120 190 260 240 Overloaded Moves . | . . . . . Propulsion Burnouts . | . . . . . Robots Hopped . | . . . . . Cave-ins Triggered . | . . . . . Exploration Rate (%) 48 | 5 42 49 77 68 Regions Visited 4 Branch Regions 2 Pre-discovered Areas . | . . . . . Known Exits Taken . | . . . . . Unknown Exits Taken 4 | 1 1 1 1 . Scrap Searched 2 | . . . 2 . Spaces Dug . | . . . . . Terrain Destroyed 89 | . 37 16 36 . Melee . | . . . . . Projectile 3 | . . 2 1 . AOE 86 | . 37 14 35 . Terrain Rammed . | . . . . . Walls Destroyed . | . . . . . Machines Disabled . | . . . . . Actions | -11 -10 -9 -9 -9 --------- Run | Yrd Mat Mat Min Exi Total 1851 | 60 178 587 461 565 Wait 111 | 2 4 53 34 18 Move 1545 | 44 152 431 395 523 Hop . | . . . . . Pick Up 30 | 5 6 14 1 4 Fast Attach 17 | 6 . 2 5 4 Attach 21 | 1 . 11 7 2 Detach 5 | . . 2 . 3 Swap 11 | . 4 5 2 . Drop 18 | 1 1 6 . 10 Fire 93 | 1 11 63 17 1 Melee . | . . . . . Ram . | . . . . . Kick . | . . . . . Crush . | . . . . . Escape Stasis . | . . . . . Rewire . | . . . . . Trap . | . . . . . Miscellaneous . | . . . . . Route ------- -11/Scrapyard -10/Materials (discovered 2 exits: *Mat x2) -9/Materials (discovered 3 exits: [*Mat x2] / *Min) -9/Mines (discovered 2 exits: [*Mat] / *Exi) -9/Exiles History --------- Turn | Location | Event 9 | -11/Scrapyard | Discovered new exit (range 15) 69 | -11/Scrapyard | Entered Materials 138 | -10/Materials | Discovered new exit (range 15) 264 | -10/Materials | Discovered new exit (range 16) 299 | -10/Materials | Entered another Materials area 299 | -9/Materials | Evolved 2 slots: Propulsion x1, Weapon x1 515 | -9/Materials | Lost 4 parts (1p1n1u1w) 664 | -9/Materials | Discovered new exit (range 15) 974 | -9/Materials | Discovered new exit (range 7) 1014 | -9/Materials | Build established: Scavenger-Tank 1136 | -9/Materials | Discovered new exit (range 15) 1153 | -9/Materials | Entered Mines 1154 | -9/Mines | Assembled infested the area 1168 | -9/Mines | Met 8R-AWN 1180 | -9/Mines | Received a Mining Laser from a helpful Derelict 1186 | -9/Mines | Destroyed 16 combat bots 1196 | -9/Mines | Lost 3 parts (1p1u1w) 1360 | -9/Mines | YI-UF0 nonchalantly dropped a Grenade Launcher on the ground 1413 | -9/Mines | Core integrity fell below 50% 1438 | -9/Mines | Core integrity fell below 20% 1470 | -9/Mines | Lost 11 parts (1p4n1u5w) 1716 | -9/Mines | Build established: Mutant 1808 | -9/Mines | Discovered new exit (range 5) 1866 | -9/Mines | Discovered new exit (range 5) 1876 | -9/Mines | Entered Exiles 1939 | -9/Exiles | Welcomed by 8R-AWN 1972 | -9/Exiles | Met EX-HEX 1989 | -9/Exiles | Learned about 8R-AWN's background 2208 | -9/Exiles | Met EX-BIN 2242 | -9/Exiles | Aligned with FarCom system 2244 | -9/Exiles | Given EX-Vault access code 2316 | -9/Exiles | Opened EX-Vault 2323 | -9/Exiles | Found Prototype Ballistic Gun 2323 | -9/Exiles | Identified AWS/Gauss 2342 | -9/Exiles | Found Prototype Ballistic Cannon 2342 | -9/Exiles | Identified AWS/Autocannon 2348 | -9/Exiles | Found Deploy-a-Sentry 2385 | -9/Exiles | Warned to stay clear of 0b10 Research branches 2451 | -9/Exiles | Met EX-DEC 2607 | -9/Exiles | Build established: Tank 2839 | -9/Exiles | Attacked by the Exiles 2860 | -9/Exiles | DAS Turret deployed 2996 | -9/Exiles | Destroyed by DAS Turret with DAS Cannon Last Messages --------------- 02965_ Aluminum Leg destroyed. 02968_ Penetrated by HV Slug. 02968_ Hrd. Medium Armor Plating destroyed. 02970_ Penetrated by HV Slug. 02972_ Lgt. Nuclear Core destroyed. 02980_ System corrupted: Heat flow error (+270). 02982_ Penetrated by HV Slug. 02982_ HV Slug penetrates Machine. 02982_ Penetrated by HV Slug. 02982_ HV Slug penetrates Machine. 02987_ HV Slug penetrates Wall. 02987_ Penetrated by HV Slug. 02987_ HV Slug penetrates Machine. 02991_ Penetrated by HV Slug. 02991_ Critical hit (Destroy). 02991_ Hrd. Medium Armor Plating destroyed. 02991_ HV Slug penetrates Machine. 02991_ Penetrated by HV Slug. 02991_ HV Slug penetrates Machine. 02995_ Imp. Treads destroyed. Map ----- +----------------------------------------------------+ | ????????????????????????""""""?# #???#?##????? | | ????????????????????????"""" ## #???????????? | | ???????????????????????#""X" #???????????? | | ???????????????????????#" #???????????? | | ???????????????????????#" ## #???????????? | | ???????????????????????#""""""?# #?#########?? | | ???????????????????????##"###??# #?#"""""""#?? | | ???????????????????????? ??????# #?#"""""""#?? | | ???????????????????????????????# #?#"""""""#?? | | ??????????????????????????????## ###"" """"#?? | | #####?????????????????????????#" """"#?? | | !! "#?????????????????????????#" """#?? | | "#?????????????????????????#" """#?? | | "#?????????????????????????#" """#?? | | ""#????????????#####????????#" """#?? | | ""#???????????? """#???????#" """#?? | | ""#???????????"" """#???????## """"?? | | #????????????#"" #????????# """#?? | | #????????????#"" #????????#" "X" """"?? | | ##???????????#"" "#????????#" """ #?? | | "###?????????? ""?????????#" """""""""#?? | | % ""#???????????" "?????????##" ###########?? | | % ######??????# #????????##"" #???????????? | | %% """"##???### ###?######"" #???????????? | | " "##"##X# #"###""""""" ##??????????? | | % g % @% ##???####### | | "# " "" " #####"""""" | | ##" %% " " " """ | | ?###" % "" | | ???#### % " | | ??????#" | | ??????##" | | ???????### | | ?????????#" """""" | | ????????##" ######""" | | ????????#"" ""##????#####""" | | ????????#""" """##?????????##""" | | ???????#""" """##???????????#"""" | | ???????#""" ""#???????????##"" | | ???????#"" ########??####"""" | | ???????#""" ## ####""" | | ???????#"" """" | | ???????##"" | | ????????#"""" | | ????????## " | | ?????????#" " "" """ | | ?????????#"""" ""## ##""" " " ""#" | | ?????????#"" ""#### ######""" """## | | ??????????" """"##??# #????###""""### | | ??????????""" """#??## ####????#####?? | +----------------------------------------------------+ Best States ------------- Heat Dissipation 28 Energy Generation 14 Energy Capacity 265 Matter Stores 300 Matter Capacity 300 Sight Range 16 Terrain Scan Density 10 Armor Coverage 450 Evasion (%) 55 Targeting Accuracy 5 Recoil Reduction 1 Item Schematics ----------------- None Robot Schematics ------------------ None Fabricated ------------ Nothing Alien Tech Used ----------------- None Achievements -------------- None Challenges ------------ None Game ------ Seed AssembledComponentRigger Manual? 0 Play Time 00:29:01 Cumulative 73.8 hours Start 2024.08.14 @ 12:43:00 End 2024.08.14 @ 17:39:51 Sessions 1 Manual Loads 0 Difficulty Rogue Special Mode None Game No. 43 Rogue 35 Adventurer 8 Explorer 0 Win Type - Total 1 Types 1/0/0/0/0/0/0/0/0 Lore% 26 Gallery% 47 Achievement% 42 Wizard Run 0 Options --------- Layout 0 ASCII 0 Keyboard 1 Movement Numpad Keybinds 1 Fullscreen 1 Font 18/SmallcapsGlow Map View 76x50 Zoom Use 0% Tactical HUD 1 Map Filters NONE Filters NONE Steam 1 RUN: 9fde3fc4-dd7b-4cd5-90b6-f03e079ffeae